[Event "*** Titled Tuesday Blitz"]
[Site "Chess.com"]
[Date "2019.12.03"]
[Round "2"]
[White "Sankalp_Gupta2003"]
[Black "PavelChernomordik"]
[Result "0-1"]
[WhiteElo "2762"]
[BlackElo "2445"]
[TimeControl "180+2"]
[EndTime "13:21:52 PST"]
[Termination "PavelChernomordik won by resignation"]

1. d4 {[%clk 0:03:01.9]} 1... g6 {[%clk 0:03:00.7]} 2. e4 {[%clk 0:03:02.1]}
2... Bg7 {[%clk 0:03:02.6]} 3. Nc3 {[%clk 0:03:03.3]} 3... d6 {[%clk 0:03:02.3]}
4. Nf3 {[%clk 0:03:04.4]} 4... a6 {[%clk 0:03:02.9]} 5. Bg5 {[%clk 0:03:05.4]}
5... h6 {[%clk 0:03:02.2]} 6. Bf4 {[%clk 0:03:05.7]} 6... b5 {[%clk 0:03:00.5]}
7. Bd3 {[%clk 0:03:04.1]} 7... Nd7 {[%clk 0:02:55.5]} 8. Qd2 {[%clk 0:03:01.8]}
8... c5 {[%clk 0:02:52.9]} 9. dxc5 {[%clk 0:02:54.8]} 9... Nxc5 {[%clk
0:02:49.5]} 10. O-O-O {[%clk 0:02:32.3]} 10... Bb7 {[%clk 0:02:38.6]} 11. Rhe1
{[%clk 0:02:29.3]} 11... b4 {[%clk 0:02:27.9]} 12. Nd5 {[%clk 0:02:25.5]} 12...
Bxd5 {[%clk 0:02:24.5]} 13. exd5 {[%clk 0:02:27.4]} 13... Na4 {[%clk 0:02:24.5]}
14. Qxb4 {[%clk 0:01:59.9]} 14... Bxb2+ {[%clk 0:02:06.3]} 15. Kb1 {[%clk
0:02:00]} 15... Nc3+ {[%clk 0:01:58.9]} 16. Kxb2 {[%clk 0:01:55.6]} 16... Rb8
{[%clk 0:01:21.6]} 17. Kxc3 {[%clk 0:01:50.1]} 17... Rxb4 {[%clk 0:01:20.2]} 18.
Kxb4 {[%clk 0:01:52]} 18... Qb6+ {[%clk 0:01:18.3]} 19. Ka4 {[%clk 0:01:43.5]}
19... Nf6 {[%clk 0:01:06.7]} 20. Rb1 {[%clk 0:01:39.1]} 20... Qc7 {[%clk
0:01:07]} 21. c4 {[%clk 0:01:34.8]} 21... O-O {[%clk 0:01:06.2]} 22. Nd4 {[%clk
0:01:26]} 22... Nd7 {[%clk 0:01:05.3]} 23. Kb3 {[%clk 0:00:39.6]} 23... Qb6+
{[%clk 0:00:54.5]} 24. Kc3 {[%clk 0:00:39.4]} 24... Qa5+ {[%clk 0:00:54.7]} 25.
Kb2 {[%clk 0:00:32.3]} 25... Rb8+ {[%clk 0:00:51.4]} 26. Nb3 {[%clk 0:00:30.7]}
26... Ne5 {[%clk 0:00:44]} 27. Bxe5 {[%clk 0:00:28.5]} 27... dxe5 {[%clk
0:00:44.4]} 28. Bc2 {[%clk 0:00:20.5]} 28... Qb4 {[%clk 0:00:36.6]} 29. Rxe5
{[%clk 0:00:15.8]} 29... Qxc4 {[%clk 0:00:36.3]} 30. Rc1 {[%clk 0:00:11.7]}
30... Qd4+ {[%clk 0:00:35.4]} 31. Ka3 {[%clk 0:00:07]} 31... Qxe5 {[%clk
0:00:36]} 32. Bd3 {[%clk 0:00:05.7]} 32... Qxd5 {[%clk 0:00:34.9]} 33. Bf1
{[%clk 0:00:06.8]} 33... a5 {[%clk 0:00:27.9]} 34. Bc4 {[%clk 0:00:03.7]} 34...
Qd6+ {[%clk 0:00:26.7]} 35. Kb2 {[%clk 0:00:04.6]} 35... a4 {[%clk 0:00:27.6]}
36. Rc2 {[%clk 0:00:05.4]} 36... axb3 {[%clk 0:00:28.1]} 37. Bxb3 {[%clk
0:00:07.3]} 37... Qxh2 {[%clk 0:00:26.9]} 38. g3 {[%clk 0:00:08]} 38... Qh5
{[%clk 0:00:24.6]} 39. a3 {[%clk 0:00:08.5]} 39... Qe5+ {[%clk 0:00:25.2]} 40.
Rc3 {[%clk 0:00:10.1]} 40... Rc8 {[%clk 0:00:25.2]} 0-1

[Event "*** Titled Tuesday Blitz"]
[Site "Chess.com"]
[Date "2019.12.03"]
[Round "2"]
[White "Azatic"]
[Black "HrvojeZagreb"]
[Result "1/2-1/2"]
[WhiteElo "2636"]
[BlackElo "2221"]
[TimeControl "180+2"]
[EndTime "13:21:57 PST"]
[Termination "Game drawn by repetition"]

1. e4 {[%clk 0:03:01.9]} 1... e6 {[%clk 0:03:00.6]} 2. d4 {[%clk 0:03:02.8]}
2... d5 {[%clk 0:03:01.8]} 3. e5 {[%clk 0:03:04.4]} 3... c5 {[%clk 0:03:02.3]}
4. c3 {[%clk 0:03:05.8]} 4... Nc6 {[%clk 0:03:03.4]} 5. Nf3 {[%clk 0:03:06.2]}
5... Bd7 {[%clk 0:03:03.5]} 6. a3 {[%clk 0:03:07.5]} 6... f6 {[%clk 0:03:03.9]}
7. Bb5 {[%clk 0:03:07.5]} 7... Nxe5 {[%clk 0:02:48.5]} 8. Nxe5 {[%clk
0:03:08.2]} 8... fxe5 {[%clk 0:02:40.1]} 9. Bxd7+ {[%clk 0:03:04.8]} 9... Qxd7
{[%clk 0:02:42]} 10. Qh5+ {[%clk 0:03:03.3]} 10... g6 {[%clk 0:02:34.4]} 11.
Qxe5 {[%clk 0:03:03.4]} 11... Bg7 {[%clk 0:02:35.2]} 12. Qe3 {[%clk 0:03:04.5]}
12... Ne7 {[%clk 0:02:29.6]} 13. dxc5 {[%clk 0:03:02.5]} 13... Nf5 {[%clk
0:02:29.7]} 14. Qe2 {[%clk 0:03:03.5]} 14... O-O {[%clk 0:02:07.1]} 15. O-O
{[%clk 0:03:04]} 15... e5 {[%clk 0:02:04]} 16. Nd2 {[%clk 0:02:55.9]} 16... e4
{[%clk 0:02:02.3]} 17. Nb3 {[%clk 0:02:51.6]} 17... Nh4 {[%clk 0:01:56.8]} 18.
Kh1 {[%clk 0:02:35.3]} 18... Rf3 {[%clk 0:01:24]} 19. gxf3 {[%clk 0:02:08.2]}
19... Qh3 {[%clk 0:00:54]} 20. Rg1 {[%clk 0:01:33.8]} 20... Nxf3 {[%clk
0:00:54.4]} 21. Rg2 {[%clk 0:01:34.3]} 21... Be5 {[%clk 0:00:54.8]} 22. Qe3
{[%clk 0:01:20]} 22... Kg7 {[%clk 0:00:20]} 23. Nd4 {[%clk 0:01:03.3]} 23...
Nxh2 {[%clk 0:00:17.1]} 24. Qh6+ {[%clk 0:01:03.8]} 24... Qxh6 {[%clk
0:00:18.1]} 25. Bxh6+ {[%clk 0:01:05.7]} 25... Kxh6 {[%clk 0:00:19.7]} 26. Rxh2+
{[%clk 0:01:07.2]} 26... Bxh2 {[%clk 0:00:20.1]} 27. Kxh2 {[%clk 0:01:09.1]}
27... Kg5 {[%clk 0:00:19.8]} 28. Kg3 {[%clk 0:01:08.2]} 28... h5 {[%clk
0:00:20.3]} 29. Rh1 {[%clk 0:01:09.5]} 29... Re8 {[%clk 0:00:19.5]} 30. f4+
{[%clk 0:01:09.6]} 30... exf3 {[%clk 0:00:20]} 31. Kxf3 {[%clk 0:01:11.5]} 31...
Rf8+ {[%clk 0:00:18.5]} 32. Ke3 {[%clk 0:01:12.6]} 32... Rf5 {[%clk 0:00:18.5]}
33. c6 {[%clk 0:01:07.5]} 33... bxc6 {[%clk 0:00:19]} 34. Nxc6 {[%clk
0:01:09.4]} 34... h4 {[%clk 0:00:20.5]} 35. Nd4 {[%clk 0:01:08.5]} 35... Re5+
{[%clk 0:00:21.2]} 36. Kf3 {[%clk 0:01:09.8]} 36... Re4 {[%clk 0:00:21.6]} 37.
b4 {[%clk 0:01:07]} 37... Kh5 {[%clk 0:00:22.8]} 38. Rg1 {[%clk 0:01:05]} 38...
g5 {[%clk 0:00:24]} 39. Nc2 {[%clk 0:00:59.5]} 39... g4+ {[%clk 0:00:25.1]} 40.
Kf2 {[%clk 0:01:00.9]} 40... g3+ {[%clk 0:00:25.6]} 41. Kf3 {[%clk 0:01:02.3]}
41... Re8 {[%clk 0:00:25.5]} 42. Nd4 {[%clk 0:00:50.2]} 42... Rf8+ {[%clk
0:00:26.5]} 43. Kg2 {[%clk 0:00:50.2]} 43... Kg4 {[%clk 0:00:27.1]} 44. Re1
{[%clk 0:00:49.5]} 44... Rf2+ {[%clk 0:00:27.9]} 45. Kg1 {[%clk 0:00:50.7]}
45... h3 {[%clk 0:00:28.7]} 46. Ne2 {[%clk 0:00:34.2]} 46... Rg2+ {[%clk
0:00:24]} 47. Kh1 {[%clk 0:00:32.5]} 47... Rh2+ {[%clk 0:00:24.4]} 48. Kg1
{[%clk 0:00:33.9]} 48... Rg2+ {[%clk 0:00:25.7]} 49. Kh1 {[%clk 0:00:35.3]}
49... Rh2+ {[%clk 0:00:25.1]} 50. Kg1 {[%clk 0:00:36.6]} 50... Rg2+ {[%clk
0:00:26.2]} 1/2-1/2

[Event "*** Titled Tuesday Blitz"]
[Site "Chess.com"]
[Date "2019.12.03"]
[Round "2"]
[White "Pultis"]
[Black "Nancy11111"]
[Result "0-1"]
[WhiteElo "2667"]
[BlackElo "2358"]
[TimeControl "180+2"]
[EndTime "13:21:59 PST"]
[Termination "Nancy11111 won on time"]

1. d4 {[%clk 0:02:58.4]} 1... d5 {[%clk 0:03:00.3]} 2. Nf3 {[%clk 0:02:59.2]}
2... Nf6 {[%clk 0:02:57.8]} 3. Bf4 {[%clk 0:02:58.5]} 3... e6 {[%clk 0:02:57.5]}
4. e3 {[%clk 0:02:59.4]} 4... Bd6 {[%clk 0:02:57.9]} 5. Bg3 {[%clk 0:03:00.1]}
5... c6 {[%clk 0:02:53]} 6. Nbd2 {[%clk 0:03:00.4]} 6... Bxg3 {[%clk 0:02:45.4]}
7. hxg3 {[%clk 0:03:01.9]} 7... Nbd7 {[%clk 0:02:44.6]} 8. c3 {[%clk 0:03:02.7]}
8... Qe7 {[%clk 0:02:45.3]} 9. Bd3 {[%clk 0:02:52.5]} 9... h6 {[%clk 0:02:37.5]}
10. e4 {[%clk 0:02:48.1]} 10... e5 {[%clk 0:02:34.7]} 11. dxe5 {[%clk
0:02:47.7]} 11... Nxe5 {[%clk 0:02:34.9]} 12. Nxe5 {[%clk 0:02:47.9]} 12... Qxe5
{[%clk 0:02:35.4]} 13. O-O {[%clk 0:02:43]} 13... O-O {[%clk 0:02:29.1]} 14.
exd5 {[%clk 0:02:25.2]} 14... Nxd5 {[%clk 0:02:27]} 15. Qf3 {[%clk 0:02:17.6]}
15... Nf6 {[%clk 0:02:07.9]} 16. Rfe1 {[%clk 0:02:15.7]} 16... Qc7 {[%clk
0:02:04.9]} 17. Qf4 {[%clk 0:02:14.3]} 17... Qxf4 {[%clk 0:02:01.2]} 18. gxf4
{[%clk 0:02:16.2]} 18... Rd8 {[%clk 0:02:02.1]} 19. Re3 {[%clk 0:02:14.9]} 19...
Nd5 {[%clk 0:02:00]} 20. Rf3 {[%clk 0:02:02.8]} 20... Nxf4 {[%clk 0:01:50]} 21.
Rxf4 {[%clk 0:02:04.7]} 21... Rxd3 {[%clk 0:01:50.2]} 22. Nb3 {[%clk 0:02:06.4]}
22... g5 {[%clk 0:01:36.8]} 23. Re4 {[%clk 0:01:53.8]} 23... Bf5 {[%clk
0:01:31.8]} 24. Re7 {[%clk 0:01:53.6]} 24... Rd7 {[%clk 0:01:31.9]} 25. Rae1
{[%clk 0:01:54.4]} 25... Rad8 {[%clk 0:01:30.3]} 26. R7e5 {[%clk 0:01:53.6]}
26... Bg6 {[%clk 0:01:26.7]} 27. Nc5 {[%clk 0:01:52.5]} 27... Rc7 {[%clk
0:01:26.4]} 28. Re7 {[%clk 0:01:37.5]} 28... Rxe7 {[%clk 0:01:02.6]} 29. Rxe7
{[%clk 0:01:39.1]} 29... b6 {[%clk 0:01:03.5]} 30. Nd7 {[%clk 0:01:36.6]} 30...
Kg7 {[%clk 0:00:57.8]} 31. g4 {[%clk 0:01:16.6]} 31... h5 {[%clk 0:00:37.3]} 32.
f3 {[%clk 0:01:13.3]} 32... hxg4 {[%clk 0:00:38.2]} 33. fxg4 {[%clk 0:01:15]}
33... c5 {[%clk 0:00:36.6]} 34. Kf2 {[%clk 0:01:03.9]} 34... Bb1 {[%clk
0:00:28.2]} 35. a3 {[%clk 0:00:58.8]} 35... Bc2 {[%clk 0:00:28.3]} 0-1

[Event "*** Titled Tuesday Blitz"]
[Site "Chess.com"]
[Date "2019.12.03"]
[Round "2"]
[White "dusanacns"]
[Black "kacprekt"]
[Result "1-0"]
[WhiteElo "2694"]
[BlackElo "2342"]
[TimeControl "180+2"]
[EndTime "13:22:12 PST"]
[Termination "dusanacns won by resignation"]

1. d4 {[%clk 0:03:01.9]} 1... d5 {[%clk 0:02:59.7]} 2. Nf3 {[%clk 0:03:03.8]}
2... Nf6 {[%clk 0:02:56.1]} 3. Bf4 {[%clk 0:03:05.2]} 3... c5 {[%clk 0:02:50.9]}
4. e3 {[%clk 0:03:06.4]} 4... Nc6 {[%clk 0:02:50.2]} 5. Nbd2 {[%clk 0:03:07.4]}
5... e6 {[%clk 0:02:49.4]} 6. c3 {[%clk 0:03:08.3]} 6... Be7 {[%clk 0:02:49.7]}
7. Bd3 {[%clk 0:03:08.8]} 7... Nh5 {[%clk 0:02:50.3]} 8. Be5 {[%clk 0:03:09.1]}
8... Nxe5 {[%clk 0:02:40.8]} 9. dxe5 {[%clk 0:03:11]} 9... g6 {[%clk 0:02:41.6]}
10. h4 {[%clk 0:02:49]} 10... Ng7 {[%clk 0:02:34.2]} 11. Qa4+ {[%clk 0:02:27.2]}
11... Bd7 {[%clk 0:02:34.8]} 12. Qf4 {[%clk 0:02:28.7]} 12... Nh5 {[%clk
0:02:15.1]} 13. Qh2 {[%clk 0:02:29.5]} 13... Ng7 {[%clk 0:02:12.2]} 14. Qf4
{[%clk 0:02:16.9]} 14... Nh5 {[%clk 0:02:12.9]} 15. Qh2 {[%clk 0:02:18.4]} 15...
Ng7 {[%clk 0:02:14.1]} 16. a3 {[%clk 0:02:13.5]} 16... Qb6 {[%clk 0:02:08.3]}
17. Rb1 {[%clk 0:02:12]} 17... a5 {[%clk 0:02:07]} 18. e4 {[%clk 0:01:56.7]}
18... a4 {[%clk 0:02:00.2]} 19. Qf4 {[%clk 0:01:57.3]} 19... Nh5 {[%clk
0:01:58.9]} 20. Qh6 {[%clk 0:01:57.4]} 20... c4 {[%clk 0:01:44]} 21. Bc2 {[%clk
0:01:41.2]} 21... Bc5 {[%clk 0:01:42.7]} 22. O-O {[%clk 0:01:37.8]} 22... O-O-O
{[%clk 0:01:40.3]} 23. Nd4 {[%clk 0:01:19.2]} 23... Bxd4 {[%clk 0:01:28.4]} 24.
cxd4 {[%clk 0:01:21.1]} 24... Qxd4 {[%clk 0:01:29.1]} 25. Nf3 {[%clk 0:01:22.1]}
25... Qc5 {[%clk 0:01:17.3]} 26. exd5 {[%clk 0:01:00.8]} 26... exd5 {[%clk
0:01:15.7]} 27. Rfd1 {[%clk 0:00:45.7]} 27... Bg4 {[%clk 0:01:09.7]} 28. Nd4
{[%clk 0:00:34.6]} 28... Bxd1 {[%clk 0:00:59]} 29. Rxd1 {[%clk 0:00:36.5]} 29...
Rhe8 {[%clk 0:00:57]} 30. Qe3 {[%clk 0:00:28.2]} 30... Ng7 {[%clk 0:00:52.6]}
31. Bxa4 {[%clk 0:00:25.9]} 31... Re7 {[%clk 0:00:47.5]} 32. Qg5 {[%clk
0:00:18.4]} 32... Ne6 {[%clk 0:00:37.7]} 33. Qe3 {[%clk 0:00:11.1]} 33... Nxd4
{[%clk 0:00:37]} 34. Rxd4 {[%clk 0:00:13]} 34... f6 {[%clk 0:00:30.1]} 35. b3
{[%clk 0:00:10.1]} 35... Kb8 {[%clk 0:00:16.2]} 36. e6 {[%clk 0:00:11.1]} 36...
Rd6 {[%clk 0:00:16.7]} 37. Bd7 {[%clk 0:00:11.5]} 37... Qc7 {[%clk 0:00:14.1]}
38. Qc3 {[%clk 0:00:11.5]} 38... cxb3 {[%clk 0:00:13.5]} 39. Qxb3 {[%clk
0:00:13.4]} 39... Qc1+ {[%clk 0:00:14]} 40. Kh2 {[%clk 0:00:14.1]} 40... Qc7
{[%clk 0:00:14.3]} 41. g3 {[%clk 0:00:14.5]} 41... Rb6 {[%clk 0:00:12.8]} 42.
Qxd5 {[%clk 0:00:15.2]} 42... Rb2 {[%clk 0:00:12.4]} 43. Kg2 {[%clk 0:00:14.7]}
43... Qc2 {[%clk 0:00:04.4]} 44. Qd6+ {[%clk 0:00:13.8]} 44... Ka7 {[%clk
0:00:05.7]} 45. Ra4+ {[%clk 0:00:14.5]} 45... Qxa4 {[%clk 0:00:04.5]} 46. Bxa4
{[%clk 0:00:16.4]} 1-0

[Event "*** Titled Tuesday Blitz"]
[Site "Chess.com"]
[Date "2019.12.03"]
[Round "2"]
[White "josiur"]
[Black "scrapnel"]
[Result "1/2-1/2"]
[WhiteElo "2438"]
[BlackElo "2704"]
[TimeControl "180+2"]
[EndTime "13:22:21 PST"]
[Termination "Game drawn by repetition"]

1. e4 {[%clk 0:03:01.4]} 1... c6 {[%clk 0:02:59.6]} 2. d4 {[%clk 0:03:01]} 2...
d5 {[%clk 0:03:00.4]} 3. Nd2 {[%clk 0:03:01.5]} 3... dxe4 {[%clk 0:03:01.4]} 4.
Nxe4 {[%clk 0:03:03.3]} 4... Bf5 {[%clk 0:03:03]} 5. Ng3 {[%clk 0:03:02.9]} 5...
Bg6 {[%clk 0:03:04.2]} 6. h4 {[%clk 0:03:03.5]} 6... h6 {[%clk 0:03:05]} 7. Nf3
{[%clk 0:03:04.5]} 7... Nf6 {[%clk 0:03:05.5]} 8. Ne5 {[%clk 0:03:04.9]} 8...
Bh7 {[%clk 0:03:06.5]} 9. Bc4 {[%clk 0:03:05.6]} 9... e6 {[%clk 0:03:06.8]} 10.
Nh5 {[%clk 0:03:05.1]} 10... Nbd7 {[%clk 0:02:57.8]} 11. Qe2 {[%clk 0:02:51.6]}
11... Nxe5 {[%clk 0:02:49.2]} 12. dxe5 {[%clk 0:02:47.4]} 12... Nxh5 {[%clk
0:02:19.8]} 13. Qxh5 {[%clk 0:02:47.2]} 13... Qd4 {[%clk 0:01:39]} 14. Bb3
{[%clk 0:02:33.6]} 14... Bb4+ {[%clk 0:01:18.9]} 15. Kf1 {[%clk 0:02:15.4]}
15... O-O-O {[%clk 0:00:49.5]} 16. Kg1 {[%clk 0:02:06.8]} 16... Qd1+ {[%clk
0:00:19.5]} 17. Qxd1 {[%clk 0:02:06]} 17... Rxd1+ {[%clk 0:00:19.5]} 18. Kh2
{[%clk 0:02:07.9]} 18... Rxh1+ {[%clk 0:00:19.7]} 19. Kxh1 {[%clk 0:02:09.3]}
19... Rd8 {[%clk 0:00:18.6]} 20. Be3 {[%clk 0:02:08.9]} 20... Be7 {[%clk
0:00:19.4]} 21. g3 {[%clk 0:02:08.9]} 21... b6 {[%clk 0:00:19.4]} 22. Kg1 {[%clk
0:02:07]} 22... Be4 {[%clk 0:00:20.1]} 23. Kf1 {[%clk 0:02:05.2]} 23... g5
{[%clk 0:00:20.6]} 24. hxg5 {[%clk 0:02:05.5]} 24... hxg5 {[%clk 0:00:21.4]} 25.
Ke1 {[%clk 0:02:01.3]} 25... Bf3 {[%clk 0:00:21.6]} 26. c3 {[%clk 0:01:58.7]}
26... Rh8 {[%clk 0:00:20]} 27. Kd2 {[%clk 0:01:58.3]} 27... c5 {[%clk 0:00:20]}
28. Bc4 {[%clk 0:01:55.9]} 28... Kc7 {[%clk 0:00:20.5]} 29. a4 {[%clk
0:01:55.8]} 29... Kc6 {[%clk 0:00:20.8]} 30. Kc2 {[%clk 0:01:51.7]} 30... g4
{[%clk 0:00:19.7]} 31. Re1 {[%clk 0:01:40]} 31... Rh5 {[%clk 0:00:20.2]} 32. Bc1
{[%clk 0:01:34.4]} 32... Rh2 {[%clk 0:00:19.5]} 33. Be3 {[%clk 0:01:34]} 33...
Rh5 {[%clk 0:00:20.6]} 34. Bd2 {[%clk 0:01:31.4]} 34... Bf8 {[%clk 0:00:21]} 35.
b4 {[%clk 0:01:27.2]} 35... Bg7 {[%clk 0:00:15.5]} 36. Bf4 {[%clk 0:01:22.9]}
36... Rh2 {[%clk 0:00:16.3]} 37. Rf1 {[%clk 0:01:15.8]} 37... Bg2 {[%clk
0:00:17.1]} 38. Re1 {[%clk 0:01:07]} 38... Bd5 {[%clk 0:00:15.2]} 39. Bb5+
{[%clk 0:01:05.4]} 39... Kc7 {[%clk 0:00:15.7]} 40. Re2 {[%clk 0:01:05.4]} 40...
Rh1 {[%clk 0:00:15]} 41. bxc5 {[%clk 0:00:58.8]} 41... bxc5 {[%clk 0:00:15.5]}
42. c4 {[%clk 0:00:56.4]} 42... Bf3 {[%clk 0:00:14.2]} 43. Rd2 {[%clk 0:00:57]}
43... Bc6 {[%clk 0:00:10.5]} 44. Bxc6 {[%clk 0:00:53.5]} 44... Kxc6 {[%clk
0:00:11.5]} 45. Rd6+ {[%clk 0:00:55.4]} 45... Kc7 {[%clk 0:00:12.7]} 46. Ra6
{[%clk 0:00:55]} 46... Kb7 {[%clk 0:00:11.3]} 47. Rd6 {[%clk 0:00:50.6]} 47...
Kc7 {[%clk 0:00:09.8]} 48. Ra6 {[%clk 0:00:48.2]} 48... Kb7 {[%clk 0:00:10.9]}
49. Rd6 {[%clk 0:00:48.8]} 49... Kc7 {[%clk 0:00:12.3]} 1/2-1/2

[Event "*** Titled Tuesday Blitz"]
[Site "Chess.com"]
[Date "2019.12.03"]
[Round "2"]
[White "saraswathii"]
[Black "vova-79"]
[Result "0-1"]
[WhiteElo "2235"]
[BlackElo "2472"]
[TimeControl "180+2"]
[EndTime "13:22:22 PST"]
[Termination "vova-79 won by resignation"]

1. d4 {[%clk 0:03:01.9]} 1... d5 {[%clk 0:02:59]} 2. Bf4 {[%clk 0:02:47.9]} 2...
Nf6 {[%clk 0:02:58.9]} 3. e3 {[%clk 0:02:47.6]} 3... c5 {[%clk 0:02:59.1]} 4. c3
{[%clk 0:02:47.6]} 4... Nc6 {[%clk 0:02:58.8]} 5. Nf3 {[%clk 0:02:47.7]} 5...
Qb6 {[%clk 0:02:58.4]} 6. Qb3 {[%clk 0:02:47.6]} 6... c4 {[%clk 0:02:59]} 7. Qc2
{[%clk 0:02:47.2]} 7... Bf5 {[%clk 0:02:56.9]} 8. Qc1 {[%clk 0:02:45.7]} 8... e6
{[%clk 0:02:51.8]} 9. Nbd2 {[%clk 0:02:44.6]} 9... Be7 {[%clk 0:02:50.5]} 10.
Be2 {[%clk 0:02:43.3]} 10... O-O {[%clk 0:02:49.2]} 11. O-O {[%clk 0:02:41.2]}
11... Rfc8 {[%clk 0:02:47.8]} 12. Ne5 {[%clk 0:02:28.7]} 12... Nxe5 {[%clk
0:02:36.1]} 13. Bxe5 {[%clk 0:02:23.3]} 13... Qd8 {[%clk 0:02:36.2]} 14. Bf3
{[%clk 0:02:10.4]} 14... b5 {[%clk 0:02:32.2]} 15. Re1 {[%clk 0:02:03.9]} 15...
b4 {[%clk 0:01:51.1]} 16. e4 {[%clk 0:01:46.8]} 16... dxe4 {[%clk 0:01:46]} 17.
Nxe4 {[%clk 0:01:46.5]} 17... Nd5 {[%clk 0:01:46.2]} 18. Ng3 {[%clk 0:01:42.1]}
18... Bg6 {[%clk 0:01:42.4]} 19. Ne4 {[%clk 0:01:13.7]} 19... bxc3 {[%clk
0:01:38.9]} 20. bxc3 {[%clk 0:01:12.3]} 20... Qa5 {[%clk 0:01:29.7]} 21. Ng3
{[%clk 0:01:00.3]} 21... Rd8 {[%clk 0:00:54.6]} 22. Ne2 {[%clk 0:00:55.7]} 22...
Rac8 {[%clk 0:00:48.9]} 23. Qd2 {[%clk 0:00:43]} 23... h6 {[%clk 0:00:44.1]} 24.
Bg3 {[%clk 0:00:33.1]} 24... Bg5 {[%clk 0:00:41.3]} 25. Nf4 {[%clk 0:00:20.2]}
25... Bxf4 {[%clk 0:00:36.3]} 26. Bxf4 {[%clk 0:00:20.4]} 26... Qxc3 {[%clk
0:00:35.4]} 27. Bxd5 {[%clk 0:00:20.5]} 27... Qxd2 {[%clk 0:00:34.6]} 28. Bxd2
{[%clk 0:00:20.8]} 28... Rxd5 {[%clk 0:00:33.5]} 29. Bc3 {[%clk 0:00:22.7]}
29... Bd3 {[%clk 0:00:31.9]} 30. Re3 {[%clk 0:00:22.6]} 30... Rd6 {[%clk
0:00:30.3]} 31. f3 {[%clk 0:00:22.1]} 31... Ra6 {[%clk 0:00:30.2]} 32. a3 {[%clk
0:00:21.3]} 32... Rb8 {[%clk 0:00:29.4]} 33. Ree1 {[%clk 0:00:17.2]} 33... Rb3
{[%clk 0:00:28.9]} 34. Bb4 {[%clk 0:00:17.5]} 34... c3 {[%clk 0:00:28.2]} 35.
Kf2 {[%clk 0:00:15.5]} 35... c2 {[%clk 0:00:28.1]} 36. Rec1 {[%clk 0:00:14.5]}
36... Bg6 {[%clk 0:00:26.6]} 37. Ke2 {[%clk 0:00:14.7]} 37... Rc6 {[%clk
0:00:22.2]} 38. Kd2 {[%clk 0:00:14.8]} 38... Rc4 {[%clk 0:00:21.3]} 39. Bc5
{[%clk 0:00:14.6]} 39... e5 {[%clk 0:00:21.3]} 40. h3 {[%clk 0:00:08.9]} 0-1

[Event "*** Titled Tuesday Blitz"]
[Site "Chess.com"]
[Date "2019.12.03"]
[Round "2"]
[White "KRASAVCHIK2002"]
[Black "DrMelekess"]
[Result "1-0"]
[WhiteElo "2453"]
[BlackElo "2702"]
[TimeControl "180+2"]
[EndTime "13:22:25 PST"]
[Termination "KRASAVCHIK2002 won by resignation"]

1. e4 {[%clk 0:03:01.9]} 1... Nf6 {[%clk 0:02:39.5]} 2. e5 {[%clk 0:03:00.8]}
2... Nd5 {[%clk 0:02:40.2]} 3. d4 {[%clk 0:03:02.1]} 3... d6 {[%clk 0:02:40.9]}
4. c4 {[%clk 0:03:03.6]} 4... Nb6 {[%clk 0:02:41.2]} 5. exd6 {[%clk 0:03:05.3]}
5... cxd6 {[%clk 0:02:41.2]} 6. Nc3 {[%clk 0:03:04.7]} 6... g6 {[%clk
0:02:34.5]} 7. Nf3 {[%clk 0:03:05.8]} 7... Bg7 {[%clk 0:02:35]} 8. Be3 {[%clk
0:03:04.8]} 8... O-O {[%clk 0:02:34.6]} 9. b3 {[%clk 0:03:06.1]} 9... Nc6 {[%clk
0:02:33.8]} 10. Rc1 {[%clk 0:03:07.6]} 10... e5 {[%clk 0:02:32.3]} 11. dxe5
{[%clk 0:03:05.6]} 11... dxe5 {[%clk 0:02:32.3]} 12. Qxd8 {[%clk 0:03:04.8]}
12... Rxd8 {[%clk 0:02:34.2]} 13. c5 {[%clk 0:02:47.2]} 13... Nd7 {[%clk
0:02:10.1]} 14. Rd1 {[%clk 0:02:42.3]} 14... h6 {[%clk 0:01:44]} 15. Bc4 {[%clk
0:02:34.2]} 15... Nd4 {[%clk 0:01:32.3]} 16. Nxd4 {[%clk 0:02:24]} 16... exd4
{[%clk 0:01:34.2]} 17. Bxd4 {[%clk 0:02:25.6]} 17... Re8+ {[%clk 0:01:31]} 18.
Ne2 {[%clk 0:02:14.5]} 18... Bxd4 {[%clk 0:01:28.3]} 19. Rxd4 {[%clk 0:02:16.4]}
19... Nxc5 {[%clk 0:01:29.5]} 20. f3 {[%clk 0:02:14.2]} 20... Be6 {[%clk
0:01:01.1]} 21. Bxe6 {[%clk 0:02:02.4]} 21... Nxe6 {[%clk 0:00:55]} 22. Rd2
{[%clk 0:01:54]} 22... Rad8 {[%clk 0:00:51.5]} 23. Rxd8 {[%clk 0:01:33.3]} 23...
Rxd8 {[%clk 0:00:53.4]} 24. Nc3 {[%clk 0:01:13.6]} 24... Nf4 {[%clk 0:00:48.1]}
25. g3 {[%clk 0:01:05.2]} 25... Rd3 {[%clk 0:00:34.2]} 26. Ne2 {[%clk
0:00:56.2]} 26... Nd5 {[%clk 0:00:22.4]} 27. f4 {[%clk 0:00:51.6]} 27... Nb4
{[%clk 0:00:20.1]} 28. Kf2 {[%clk 0:00:49.9]} 28... Nxa2 {[%clk 0:00:17.6]} 29.
Ra1 {[%clk 0:00:46.1]} 29... Rd2 {[%clk 0:00:18.7]} 30. Ke3 {[%clk 0:00:46.2]}
30... Rb2 {[%clk 0:00:20.2]} 31. Nd4 {[%clk 0:00:46.1]} 31... a6 {[%clk
0:00:20.5]} 32. h4 {[%clk 0:00:44.1]} 32... h5 {[%clk 0:00:19.4]} 33. f5 {[%clk
0:00:45.2]} 33... Nb4 {[%clk 0:00:18.8]} 34. fxg6 {[%clk 0:00:41.9]} 34... fxg6
{[%clk 0:00:20.7]} 35. Rc1 {[%clk 0:00:42.6]} 35... Nd5+ {[%clk 0:00:14.8]} 36.
Ke4 {[%clk 0:00:43]} 36... Nf6+ {[%clk 0:00:15.2]} 37. Ke5 {[%clk 0:00:39.9]}
37... Ng4+ {[%clk 0:00:16.3]} 38. Kf4 {[%clk 0:00:39.9]} 38... Rd2 {[%clk
0:00:15.6]} 39. Ne6 {[%clk 0:00:38.2]} 39... Rd7 {[%clk 0:00:13.3]} 40. Kg5
{[%clk 0:00:36.9]} 40... Kf7 {[%clk 0:00:11.9]} 41. Nf4 {[%clk 0:00:35.4]} 41...
Nf6 {[%clk 0:00:09.4]} 42. Rf1 {[%clk 0:00:31.1]} 42... Ne4+ {[%clk 0:00:05]}
43. Kh6 {[%clk 0:00:31.2]} 43... Nxg3 {[%clk 0:00:06.6]} 44. Rf2 {[%clk
0:00:30.7]} 44... Nf5+ {[%clk 0:00:07.7]} 45. Kg5 {[%clk 0:00:31.6]} 45... Re7
{[%clk 0:00:07.2]} 46. Nxg6 {[%clk 0:00:31.7]} 46... Re6 {[%clk 0:00:03.1]} 47.
Rxf5+ {[%clk 0:00:31.8]} 47... Kg7 {[%clk 0:00:04.4]} 48. Nf4 {[%clk 0:00:31.7]}
1-0